fUST/lending_fUST_20241203
["ID","MTS","AMOUNT","RATE_DAILY","PERIOD"]
[344006654,1733182243849,-510.04248118,0.00027671,7]
[344006655,1733182243858,-500.0,0.00027671,7]
[344006656,1733182243868,-500.0,0.00027671,7]
[344006657,1733182243877,-617.47,0.00027671,7]
[344006658,1733182243887,-500.0,0.00027671,7]
[344006659,1733182243896,-500.0,0.00027671,7]
[344006660,1733182243906,-500.0,0.00027671,7]
[344006661,1733182243915,-500.0,0.00027671,7]
[344006662,1733182243924,-300.10675743,0.00027671,7]
[344006663,1733182243935,-500.0,0.00027671,7]
[344006664,1733182243943,-612.77,0.00027671,7]
[344006665,1733182243953,-500.0,0.00027671,7]
[344006666,1733182243963,-500.0,0.00027671,7]
[344006667,1733182243972,-500.0,0.00027671,7]
[344006668,1733182243982,-500.0,0.00027671,7]
[344006669,1733182243991,-500.0,0.00027671,7]
[344006670,1733182244001,-500.0,0.00027671,7]
[344006671,1733182244011,-500.0,0.00027671,7]
[344006672,1733182244021,-500.0,0.00027671,7]
[344006673,1733182244030,-500.0,0.00027671,7]
[344006674,1733182244040,-500.0,0.00027671,7]
[344006675,1733182244050,-500.0,0.00027671,7]
[344006676,1733182244059,-500.0,0.00027671,7]
[344006677,1733182244070,-500.0,0.00027671,7]
[344006678,1733182244079,-500.0,0.00027671,7]
[344006679,1733182244088,-500.0,0.00027671,7]
[344006680,1733182244097,-500.0,0.00027671,7]
[344006681,1733182244107,-500.0,0.00027671,7]
[344006682,1733182244116,-500.0,0.00027671,7]
[344006683,1733182244126,-502.04279711,0.00027671,7]
[344006684,1733182244136,-500.0,0.00027671,7]
[344006685,1733182244145,-500.0,0.00027671,7]
[344006686,1733182244156,-500.0,0.00027671,7]
[344006687,1733182244166,-500.0,0.00027671,7]
[344006688,1733182244176,-500.0,0.00027671,7]
[344006689,1733182244186,-500.0,0.00027671,7]
[344006690,1733182244196,-500.0,0.00027671,7]
[344006691,1733182244206,-500.0,0.00027671,7]
[344006692,1733182244215,-500.0,0.00027671,7]
[344006693,1733182244225,-500.0,0.00027671,7]
[344006694,1733182244235,-500.0,0.00027671,2]
[344006695,1733182244245,-500.0,0.00027671,7]
[344006696,1733182244256,-500.0,0.00027671,7]
[344006697,1733182244266,-474.72658378,0.00027671,7]
[344006698,1733182244275,-500.0,0.00027671,7]
[344006699,1733182244358,-500.0,0.00027671,7]
[344006700,1733182244369,-500.0,0.00027671,7]
[344006701,1733182244378,-500.0,0.00027671,7]
[344006702,1733182244388,-979.74,0.00027671,7]
[344006703,1733182244398,-500.0,0.00027671,7]
[344006704,1733182244407,-500.0,0.00027671,7]
[344006705,1733182244417,-500.0,0.00027671,7]
[344006706,1733182244426,-500.0,0.00027671,7]
[344006707,1733182244436,-500.0,0.00027671,7]
[344006708,1733182244446,-478.60509614,0.00027671,7]
[344006709,1733182244460,-21.39490386,0.00027671,7]
[344006710,1733182244472,-500.0,0.00027671,7]
[344006711,1733182244482,-500.0,0.00027671,7]
[344006712,1733182244492,-500.0,0.00027671,7]
[344006713,1733182244504,-500.0,0.00027671,7]
[344006714,1733182244517,-500.0,0.00027671,7]
[344006715,1733182244527,-500.0,0.00027671,7]
[344006716,1733182244537,-300.19861399,0.00027671,7]
[344006720,1733182246128,-500.0,0.00027397,7]
[344006721,1733182246138,-199.80138601,0.00027671,7]
[344006722,1733182246147,-500.0,0.00027671,7]
[344006723,1733182246157,-500.0,0.00027671,7]
[344006724,1733182246167,-500.0,0.00027671,7]
[344006725,1733182246177,-500.0,0.00027671,7]
[344006726,1733182246187,-500.0,0.00027671,7]
[344006727,1733182246196,-500.0,0.00027671,7]
[344006728,1733182246206,-500.0,0.00027671,7]
[344006729,1733182246216,-307.31162071,0.00027671,7]
[344006730,1733182246225,-1967.64,0.00027671,7]
[344006731,1733182246235,-500.0,0.00027671,7]
[344006732,1733182246244,-506.61,0.00027671,7]
[344006733,1733182246256,-700.18,0.00027671,7]
[344006734,1733182246265,-500.0,0.00027671,7]
[344006736,1733182246275,-502.9624906,0.00027671,7]
[344006738,1733182246285,-273.36722473,0.00027671,7]
[344006740,1733182246300,-183.66242603,0.00027671,7]
[344006742,1733182246309,-500.0,0.00027671,7]
[344006743,1733182246319,-500.0,0.00027671,7]
[344006745,1733182246328,-500.0,0.00027671,7]
[344006747,1733182246338,-168.0,0.00027671,7]
[344006748,1733182246347,-500.0,0.00027671,7]
[344006749,1733182246356,-500.0,0.00027671,7]
[344006750,1733182246365,-500.0,0.00027671,7]
[344006751,1733182246374,-500.0,0.00027671,7]
[344006752,1733182246386,-500.0,0.00027671,7]
[344006753,1733182246395,-500.0,0.00027671,7]
[344006754,1733182246405,-500.0,0.00027671,7]
[344006755,1733182246414,-203.1994775,0.00027671,7]
[344006756,1733182246423,-500.0,0.00027671,7]
[344006757,1733182246433,-500.0,0.00027671,7]
[344006758,1733182246442,-500.0,0.00027671,7]
[344006759,1733182246452,-634.44587323,0.00027671,7]
[344006760,1733182246462,-519.22871882,0.00027671,7]
[344006761,1733182246471,-500.0,0.00027671,7]
[344006762,1733182246481,-500.0,0.00027671,7]
[344006763,1733182246491,-179.59771498,0.00027671,7]
[344006764,1733182246502,-500.0,0.00027671,7]
[344006765,1733182246511,-500.0,0.00027671,7]
[344006766,1733182246521,-747.87,0.00027671,7]
[344006767,1733182246531,-500.0,0.00027671,7]
[344006768,1733182246541,-500.0,0.00027671,7]
[344006769,1733182246550,-508.44559478,0.00027671,7]
[344006770,1733182246561,-500.0,0.00027671,7]
[344006771,1733182246573,-500.0,0.00027671,7]
[344006772,1733182246582,-777.67,0.00027671,7]
[344006773,1733182246592,-500.0,0.00027671,7]
[344006774,1733182246602,-500.0,0.00027671,7]
[344006775,1733182246612,-500.0,0.00027671,7]
[344006776,1733182246622,-624.75,0.00027671,7]
[344006777,1733182246631,-500.0,0.00027671,7]
[344006778,1733182246641,-500.0,0.00027671,7]
[344006779,1733182246651,-4942.06,0.00027671,7]
[344006780,1733182246663,-500.0,0.00027671,7]
[344006781,1733182246673,-500.0,0.00027671,7]
[344006782,1733182246683,-500.0,0.00027671,7]
[344006783,1733182246693,-500.0,0.00027671,7]
[344006784,1733182246702,-406.62474428,0.00027671,7]
[344006785,1733182246712,-4408.6535105,0.00027671,7]
[344006797,1733183051512,163.19526,0.00013973,2]
[344006841,1733183432447,-300.0,0.00019999,2]
[344006843,1733183432457,-300.0,0.00019999,2]
[344006845,1733183432467,-2005.0,0.0002,2]
[344006847,1733183432477,-2003.0,0.0002,2]
[344006849,1733183432487,-2003.0,0.0002,2]
[344006851,1733183432497,-2003.0,0.0002,2]
[344006854,1733183432506,-1169.27083333,0.0002,2]
[344006856,1733183432517,-310.766817,0.00020597,2]
[344006858,1733183432527,-27559.4966214,0.00021306,2]
[344006860,1733183432538,-3635.0474497,0.00021396,2]
[344006862,1733183432548,-420.0,0.00021777,2]
[344006864,1733183432558,-152.0,0.0002191,2]
[344006866,1733183432567,-420.0,0.00021999,2]
[344006868,1733183432577,-4942.028664,0.00022,3]
[344006870,1733183432587,-172.2139998,0.0002215,2]
[344006872,1733183432597,-872.9990158,0.00022653,2]
[344006874,1733183432607,-24900.0,0.00022782,2]
[344006876,1733183432617,-587.0,0.00023712,2]
[344006878,1733183432626,-508.12257824,0.00023924,2]
[344006880,1733183432636,-428.04876772,0.00024,5]
[344006882,1733183432645,-587.0,0.00024199,2]
[344006884,1733183432655,-196.762,0.00024998,8]
[344006886,1733183432664,-163.19526,0.00025156,2]
[344006888,1733183432674,-508.12257824,0.00025238,2]
[344006890,1733183432683,-823.0,0.0002582,2]
[344006892,1733183432695,-508.12257824,0.00026551,2]
[344006894,1733183432704,-823.0,0.00026619,2]
[344006896,1733183432713,-321.0,0.00027,2]
[344006898,1733183432723,-203.0,0.00027,2]
[344006900,1733183432732,-154.0,0.00027,2]
[344006902,1733183432741,-306.0,0.0002717,2]
[344006903,1733183432751,-153.0,0.0002717,2]
[344006904,1733183432760,-153.0,0.0002717,2]
[344006905,1733183432770,-153.0,0.0002717,2]
[344006906,1733183432779,-153.0,0.0002717,2]
[344006907,1733183432790,-150.0,0.00027197,2]
[344006908,1733183432799,-531.0,0.00027197,2]
[344006909,1733183432808,-2376.0,0.00027197,2]
[344006910,1733183432818,-2173.0,0.00027197,2]
[344006911,1733183432827,-500.0,0.00027386,2]
[344006912,1733183432836,-199.87181906,0.00027386,2]
[344006913,1733183432846,-500.0,0.00027386,2]
[344006914,1733183432855,-500.0,0.00027386,2]
[344006915,1733183432864,-500.0,0.00027386,2]
[344006916,1733183432873,-500.0,0.00027386,2]
[344006917,1733183432883,-500.0,0.00027386,2]
[344006918,1733183432892,-412.98495877,0.00027386,2]
[344006919,1733183432902,-3224.32,0.00027387,10]
[344006920,1733183432912,-6427.15,0.00027387,10]
[344006921,1733183432922,-1169.27083333,0.00027397,7]
[344006922,1733183432931,-622.11314596,0.00027397,7]
[344007006,1733183438395,-664.98101897,0.00021396,2]
[344007007,1733183438405,-150.0,0.00027197,2]
[344007008,1733183438415,-547.15768737,0.00027397,7]
[344007009,1733183438424,-1169.27083333,0.00027397,7]
[344007011,1733183438434,-559.50332757,0.00027397,7]
[344007013,1733183438446,-183.00476703,0.00027397,7]
[344007014,1733183438458,-316.99523297,0.00027397,7]
[344007015,1733183438467,-188.42821633,0.00027397,7]
[344007016,1733183438479,-377.58178367,0.00027397,7]
[344007017,1733183438488,-500.0,0.00027397,7]
[344007018,1733183438496,-500.0,0.00027397,7]
[344007019,1733183438505,-253.29147788,0.00027397,7]
[344007020,1733183438516,-246.70852212,0.00027397,7]
[344007021,1733183438526,-500.0,0.00027397,7]
[344007023,1733183438536,-379.79347656,0.00027397,7]
[344007024,1733183438545,-500.0,0.00027397,7]
[344007026,1733183438555,-500.0,0.00027397,7]
[344007028,1733183438564,-500.0,0.00027397,7]
[344007030,1733183438573,-500.0,0.00027397,7]
[344007032,1733183438583,-500.0,0.00027397,7]
[344007035,1733183438596,-500.0,0.00027397,7]
[344007037,1733183438606,-500.0,0.00027397,7]
[344007039,1733183438615,-287.69002386,0.00027397,7]
[344007041,1733183438624,-500.0,0.00027397,7]
[344007043,1733183438634,-500.0,0.00027397,2]
[344007045,1733183438643,-500.0,0.00027397,7]
[344007047,1733183438652,-500.0,0.00027397,7]
[344007049,1733183438662,-500.0,0.00027397,7]
[344007051,1733183438672,-567.64027475,0.00027397,7]
[344007053,1733183438681,-31.44401561,0.00027397,7]
[344007078,1733183443383,-468.55598439,0.00027397,7]
[344007079,1733183443393,-500.0,0.00027397,7]
[344007080,1733183443402,-306.41401561,0.00027397,7]
[344007134,1733183942680,163.19526,0.00013973,2]
[344007163,1733184632549,-470.01170499,0.00019406,2]
[344007165,1733184632558,-1140.0,0.000198,2]
[344007167,1733184632567,-1083.25560077,0.0002,2]
[344007172,1733184632610,-86.01523256,0.0002,2]
[344007176,1733184632619,-310.766817,0.00025315,2]
[344007179,1733184632628,-300.0,0.00025601,2]
[344007181,1733184632637,-300.0,0.00025601,2]
[344007183,1733184632646,-3671.81145647,0.00025602,2]
[344007251,1733184638463,-520.1579823,0.00025602,2]
[344007252,1733184638518,-20708.03056123,0.00025602,2]
[344007253,1733184638526,-1579.8934485,0.00025807,2]
[344007254,1733184638535,-339.14132805,0.00026278,2]
[344007255,1733184638545,-328.3776297,0.00026378,2]
[344007256,1733184638554,-155.0,0.00026415,2]
[344007257,1733184638563,-208.2971222,0.00026775,2]
[344007258,1733184638573,-339.14132798,0.0002688,2]
[344007259,1733184638582,-500.0,0.00026945,120]
[344007260,1733184638592,-500.0,0.00026945,120]
[344007261,1733184638601,-179.6,0.00026945,120]
[344007262,1733184638610,-271.1169245,0.00027,2]
[344007263,1733184638626,-107.8830755,0.00027,2]
[344007265,1733184638635,-155.0,0.00027,2]
[344007266,1733184638644,-179.316,0.00027197,2]
[344007268,1733184638653,-150.0,0.00027197,2]
[344007270,1733184638662,-250.385,0.00027197,2]
[344007271,1733184638671,-150.0,0.00027197,2]
[344007273,1733184638681,-531.0,0.00027197,2]
[344007275,1733184638689,-2173.0,0.00027197,2]
[344007277,1733184638699,-2376.0,0.00027197,2]
[344007279,1733184638708,-526.498922,0.0002725,120]
[344007280,1733184638717,-368.89859296,0.00027297,2]
[344007282,1733184638726,-585.8387041,0.00027385,2]
[344007283,1733184638735,-189.29,0.00027385,10]
[344007284,1733184638745,-157.74,0.00027385,10]
[344007285,1733184638754,-386.91012939,0.00027394,2]
[344007286,1733184638764,-500.0,0.00027394,2]
[344007287,1733184638773,-500.0,0.00027394,2]
[344007288,1733184638783,-500.0,0.00027394,2]
[344007289,1733184638792,-500.0,0.00027394,2]
[344007290,1733184638801,-326.64610839,0.00027394,2]
[344007291,1733184638814,-79.39080285,0.00027394,2]
[344007292,1733184638823,-302.74503449,0.00027394,2]
[344007293,1733184638832,-584.58158256,0.00027394,2]
[344007294,1733184638841,-500.0,0.00027394,2]
[344007295,1733184638851,-500.0,0.00027394,2]
[344007296,1733184638860,-500.0,0.00027394,2]
[344007297,1733184638873,-500.0,0.00027394,2]
[344007298,1733184638882,-500.0,0.00027394,2]
[344007299,1733184638892,-500.0,0.00027394,2]
[344007300,1733184638904,-500.0,0.00027394,2]
[344007301,1733184638913,-500.0,0.00027394,2]
[344007302,1733184638923,-500.0,0.00027394,2]
[344007303,1733184638932,-500.0,0.00027394,2]
[344007304,1733184638942,-500.0,0.00027394,2]
[344007305,1733184638951,-500.0,0.00027394,2]
[344007306,1733184638960,-500.0,0.00027394,2]
[344007307,1733184638970,-500.0,0.00027394,2]
[344007308,1733184638979,-500.0,0.00027394,2]
[344007309,1733184638988,-500.0,0.00027394,2]
[344007310,1733184638997,-453.40401752,0.00027394,2]
[344007311,1733184639009,-196.59598248,0.00027394,2]
[344007312,1733184639019,-500.0,0.00027394,2]
[344007313,1733184639028,-500.0,0.00027394,2]
[344007314,1733184639037,-80.88967464,0.00027394,2]
[344007315,1733184639048,-478.32813793,0.00027394,2]
[344007316,1733184639057,-500.0,0.00027394,2]
[344007317,1733184639067,-500.0,0.00027394,2]
[344007318,1733184639076,-500.0,0.00027394,2]
[344007319,1733184639087,-500.0,0.00027394,2]
[344007320,1733184639096,-500.0,0.00027394,2]
[344007321,1733184639105,-550.0,0.00027394,2]
[344007322,1733184639118,-500.0,0.00027394,2]
[344007323,1733184639127,-316.98736455,0.00027394,2]
[344007367,1733184640362,-788.74,0.00027385,10]
[344007369,1733184640377,-183.01263545,0.00027394,2]
[344007371,1733184640386,-500.0,0.00027394,2]
[344007373,1733184640395,-243.17597216,0.00027394,2]
[344007401,1733184643467,-256.82402784,0.00027394,2]
[344007402,1733184643477,-500.0,0.00027394,2]
[344007403,1733184643486,-500.0,0.00027394,2]
[344007404,1733184643495,-500.0,0.00027394,2]
[344007405,1733184643505,-500.0,0.00027394,2]
[344007406,1733184643514,-500.0,0.00027394,2]
[344007407,1733184643524,-500.0,0.00027394,2]
[344007408,1733184643533,-180.97002655,0.00027394,2]
[344007409,1733184643542,-489.55965681,0.00027394,2]
[344007410,1733184643552,-897.65740008,0.00027395,2]
[344007423,1733184646411,-2707.13349,0.00027395,2]
[344007424,1733184696810,164.354883,0.00013973,2]
[344007448,1733185466195,1044.33307426,0.00026,120]
[344007489,1733185832587,-609.68433419,0.0002,2]
[344007490,1733185832646,-559.58649914,0.0002,2]
[344007492,1733185832657,-1121.95681356,0.0002201,16]
[344007493,1733185832668,-627.68457659,0.000249,2]
[344007494,1733185832678,-882.30319757,0.00025,2]
[344007495,1733185832689,-300.0,0.00025181,2]
[344007497,1733185832699,-300.0,0.00025181,2]
[344007498,1733185832709,-510.06591314,0.00025182,2]
[344007546,1733185838664,-664.80000001,0.00025182,2]
[344007547,1733185838677,-22380.45794858,0.00025182,2]
[344007560,1733185840592,-1344.67613827,0.00025182,2]
[344007561,1733185840602,-310.766817,0.00025293,2]
[344007562,1733185840612,-380.0,0.00025455,2]
[344007563,1733185840621,-10316.92856647,0.00026,30]
[344007564,1733185840632,-518.91128474,0.00026,2]
[344007565,1733185840642,-259.5729607,0.00026411,2]
[344007566,1733185840652,-413.2185017,0.00026578,2]
[344007567,1733185840662,-155.1131882,0.00026578,2]
[344007568,1733185840676,-427.7943413,0.00026578,2]
[344007569,1733185840686,-308.2581861,0.00026578,2]
[344007570,1733185840700,-306.0,0.00026578,2]
[344007571,1733185840709,-154604.76388055,0.000268,2]
[344007572,1733185840722,-332.91988524,0.000268,2]
[344007594,1733185843641,-3052.2825384,0.000268,2]
[344007596,1733185843653,-2464.20327081,0.000268,2]
[344007598,1733185843664,-496.778,0.000268,2]
[344007600,1733185843701,-14529.65157126,0.000268,2]
[344007619,1733185846612,-8106.09999,0.000268,2]
[344007620,1733185846624,-2116.49619701,0.000268,2]
[344007623,1733185884360,164.354883,0.00013973,2]
[344007629,1733186446684,150.04,0.00026,60]
[344007630,1733186489024,164.354883,0.00013973,2]
[344007632,1733186732433,609.8,0.00026,60]
[344007687,1733187031808,-1169.27083333,0.0002,2]
[344007688,1733187031818,-160.0,0.00024908,3]
[344007689,1733187031827,-300.0,0.00024975,2]
[344007690,1733187031837,-300.0,0.00024975,2]
[344007691,1733187031846,-135.12914962,0.00024976,2]
[344007692,1733187031857,-18895.7999998,0.00024976,2]
[344007693,1733187031868,-1935.42111168,0.00024976,2]
[344007694,1733187031878,-160.0,0.00025132,4]
[344007695,1733187031887,-160.0,0.00025355,5]
[344007696,1733187031898,-160.0,0.00025579,6]
[344007697,1733187031907,-160.0,0.00025803,7]
[344007698,1733187031916,-2514.59650295,0.00026,2]
[344007699,1733187031925,-160.0,0.00026026,8]
[344007700,1733187031935,-160.0,0.0002625,9]
[344007701,1733187031944,-155.0,0.00026348,2]
[344007702,1733187031953,-160.0,0.00026474,10]
[344007703,1733187031963,-183.939,0.000265,13]
[344007704,1733187031972,-248.522,0.000265,2]
[344007705,1733187031981,-531.0,0.000265,2]
[344007706,1733187031990,-2173.0,0.000265,2]
[344007707,1733187032000,-2376.0,0.000265,2]
[344007708,1733187032008,-276.058126,0.00026598,2]
[344007712,1733187032018,-160.0,0.00026698,11]
[344007713,1733187032120,-272.72244117,0.00026698,5]
[344007714,1733187032130,-6253.1688368,0.000268,2]
[344007734,1733187037729,-399.05060377,0.000268,2]
[344007776,1733187039704,-724.739587,0.000265,2]
[344007798,1733187045789,-789.999413,0.000265,2]
[344007799,1733187045800,-144.20308815,0.000268,2]
[344007800,1733187045812,-2649.99998,0.000268,2]
[344007801,1733187108791,164.354883,0.00013973,2]
[344007803,1733187799345,164.354883,0.00013973,2]
[344007804,1733188011632,250.16,0.000161,2]
[344007852,1733188232989,-1209.29120551,0.00019019,2]
[344007853,1733188232998,-153.54672734,0.00019379,2]
[344007854,1733188233007,-223.35607046,0.00019479,2]
[344007929,1733188337048,-272.312148,0.00029185,120]
[344007930,1733188337133,-118.687852,0.00029185,120]
[344007931,1733188337155,-272.312148,0.00029195,120]
[344007932,1733188337338,-118.687852,0.00029195,120]
[344007933,1733188337362,-272.312148,0.00029205,120]
[344007934,1733188337587,-118.687852,0.00029205,120]
[344007935,1733188337617,-199.756148,0.00029833,120]
[344007936,1733188337715,-191.243852,0.00029833,120]
[344007937,1733188337742,-308.756148,0.00029843,120]
[344007938,1733188337840,-82.243852,0.00029843,120]
[344007939,1733188337866,-308.756148,0.00029853,120]
[344007940,1733188337962,-82.243852,0.00029853,120]
[344007941,1733188337988,-318.444,0.0003,120]
[344007942,1733188338011,-150.0,0.00030027,120]
[344007943,1733188338036,-500.0,0.00030136,120]
[344007944,1733188338059,-500.0,0.00030136,120]
[344007945,1733188338083,-500.0,0.00030136,120]
[344007946,1733188338107,-500.0,0.00030136,120]
[344007947,1733188338134,-500.0,0.00030136,120]
[344007948,1733188338158,-500.0,0.00030136,120]
[344007949,1733188338181,-500.0,0.00030136,120]
[344007950,1733188338207,-500.0,0.00030136,120]
[344007951,1733188338232,-500.0,0.00030136,120]
[344007952,1733188338256,-449.312148,0.00030136,120]
[344007953,1733188338447,-50.687852,0.00030136,120]
[344007954,1733188338471,-230.556,0.00030136,120]
[344007955,1733188338649,-269.444,0.00030136,120]
[344007956,1733188338673,-121.556,0.00030137,120]
[344007957,1733188370729,156.0,0.00029212,120]
[344007958,1733188371099,156.0,0.00029202,120]
[344007959,1733188371546,79.0,0.00029192,120]
[344007960,1733188371567,77.0,0.00029192,120]
[344007961,1733188429343,164.354883,0.00013973,2]
[344007967,1733189060746,164.354883,0.00013973,2]
[344007968,1733189139093,-299.2479134,0.0001761,2]
[344007969,1733189139115,-526.4972571,0.00017828,2]
[344007970,1733189139136,-2575.06281753,0.00017968,2]
[344007971,1733189139158,-300.0,0.0001801,2]
[344007972,1733189139179,-8980.9239246,0.00018011,2]
[344007973,1733189139202,-250.0,0.00018068,2]
[344007974,1733189139226,-1121.7953526,0.000181,2]
[344007975,1733189139246,-2575.06281751,0.00018257,2]
[344007976,1733189139269,-344.148348,0.00018331,2]
[344007977,1733189139290,-4074.7918091,0.00018477,2]
[344007978,1733189139312,-2575.06281751,0.00018546,2]
[344007979,1733189139336,-10222.619291,0.00018646,2]
[344007980,1733189139358,-1566.15367202,0.00018646,2]
[344007981,1733189139380,-1132.24987254,0.0001888,2]
[344007982,1733189139404,-695.10318445,0.00019074,2]
[344007983,1733189139427,-9035.64303048,0.00019074,2]
[344007984,1733189139449,-152.0,0.00019139,2]
[344007985,1733189139471,-281.0180957,0.00019178,11]
[344007986,1733189139493,-195.31907312,0.00019185,2]
[344007987,1733189139515,-9035.64303049,0.0001939,2]
[344007988,1733189139537,-24900.0,0.00019447,2]
[344007989,1733189139560,-500.0,0.000195,2]
[344007990,1733189139586,-257.73541182,0.00019601,2]
[344007991,1733189139608,-500.0,0.00019701,2]
[344007992,1733189139630,-500.0,0.00019701,2]
[344007993,1733189139652,-500.0,0.00019701,2]
[344007994,1733189139674,-500.0,0.00019701,2]
[344007995,1733189139696,-447.17271329,0.00019701,2]
[344007996,1733189139718,-420.0,0.00019811,2]
[344007997,1733189139740,-1169.27083333,0.0002,2]
[344007998,1733189139761,-9118.0,0.0002,2]
[344007999,1733189139782,-178.013203,0.00020521,2]
[344008000,1733189139805,-1132.24987253,0.00020541,2]
[344008001,1733189139829,-587.0,0.00021792,2]
[344008002,1733189139854,-162.17321865,0.000222,2]
[344008003,1733189139876,-500.0,0.000222,2]
[344008004,1733189139899,-168.23440248,0.000222,2]
[344008005,1733189139922,-500.0,0.000222,2]
[344008006,1733189139945,-500.0,0.000222,2]
[344008007,1733189139967,-500.0,0.000222,2]
[344008008,1733189139989,-500.0,0.000222,2]
[344008009,1733189140010,-219.00178224,0.000222,2]
[344008010,1733189140031,-500.0,0.000222,2]
[344008011,1733189140053,-500.0,0.000222,2]
[344008012,1733189140075,-500.0,0.000222,2]
[344008013,1733189140095,-286.34530285,0.000222,2]
[344008014,1733189140117,-500.0,0.000222,2]
[344008015,1733189140139,-500.0,0.000222,2]
[344008016,1733189140162,-500.0,0.000222,2]
[344008017,1733189140183,-500.0,0.000222,2]
[344008018,1733189140205,-500.0,0.000222,2]
[344008019,1733189140227,-500.0,0.000222,2]
[344008020,1733189140250,-500.0,0.000222,2]
[344008021,1733189140274,-450.0,0.000222,2]
[344008022,1733189140296,-500.0,0.000222,2]
[344008023,1733189140323,-500.0,0.000222,2]
[344008024,1733189140346,-500.0,0.000222,2]
[344008025,1733189140370,-500.0,0.000222,2]
[344008026,1733189140479,-500.0,0.000222,2]
[344008027,1733189140503,-500.0,0.000222,2]
[344008028,1733189140526,-500.0,0.000222,2]
[344008029,1733189140550,-500.0,0.000222,2]
[344008030,1733189140577,-500.0,0.000222,2]
[344008031,1733189140600,-500.0,0.000222,2]
[344008032,1733189140622,-500.0,0.000222,2]
[344008033,1733189140645,-500.0,0.000222,2]
[344008034,1733189140669,-500.0,0.000222,2]
[344008035,1733189140692,-500.0,0.000222,2]
[344008036,1733189140714,-500.0,0.000222,2]
[344008037,1733189140737,-500.0,0.000222,2]
[344008038,1733189140759,-500.0,0.000222,2]
[344008039,1733189140780,-500.0,0.000222,2]
[344008040,1733189140803,-500.0,0.000222,2]
[344008041,1733189140827,-500.0,0.000222,2]
[344008042,1733189140853,-492.63542684,0.000222,2]
[344008043,1733189140875,-500.0,0.000222,2]
[344008044,1733189140898,-500.0,0.000222,2]
[344008045,1733189140921,-500.0,0.000222,2]
[344008046,1733189140945,-500.0,0.000222,2]
[344008047,1733189140966,-500.0,0.000222,2]
[344008048,1733189140988,-500.0,0.000222,2]
[344008049,1733189141011,-500.0,0.000222,2]
[344008050,1733189141033,-500.0,0.000222,2]
[344008051,1733189141055,-500.0,0.000222,2]
[344008052,1733189141078,-500.0,0.000222,2]
[344008053,1733189141100,-500.0,0.000222,2]
[344008054,1733189141121,-500.0,0.000222,2]
[344008055,1733189141144,-500.0,0.000222,2]
[344008056,1733189141167,-500.0,0.000222,2]
[344008057,1733189141190,-500.0,0.000222,2]
[344008058,1733189141213,-500.0,0.000222,2]
[344008059,1733189141236,-500.0,0.000222,2]
[344008060,1733189141259,-500.0,0.000222,2]
[344008061,1733189141281,-500.0,0.000222,2]
[344008062,1733189141302,-500.0,0.000222,2]
[344008063,1733189141327,-500.0,0.000222,2]
[344008064,1733189141349,-500.0,0.000222,2]
[344008065,1733189141376,-500.0,0.000222,2]